[Event "Late-Titled-Tuesday-Blitz-January-16-2024"]
[Site "Chess.com"]
[Date "2024.01.16"]
[Round "3"]
[White "XeresLt"]
[Black "pr1105"]
[Result "0-1"]
[WhiteElo "2545"]
[BlackElo "2278"]
[TimeControl "180+1"]
[EndTime "14:28:36 PST"]
[Termination "pr1105 won by resignation"]

1. e4 {[%clk 0:03:00.9]} 1... e5 {[%clk 0:03:00.2]} 2. Nf3 {[%clk 0:03:01.3]}
2... Nc6 {[%clk 0:03:00.7]} 3. Bc4 {[%clk 0:03:00.2]} 3... Bc5 {[%clk
0:03:00.7]} 4. O-O {[%clk 0:03:00.4]} 4... Nf6 {[%clk 0:03:00.2]} 5. d3 {[%clk
0:03:01]} 5... d6 {[%clk 0:02:58.2]} 6. c3 {[%clk 0:03:01.3]} 6... a5 {[%clk
0:02:58.4]} 7. a4 {[%clk 0:03:00]} 7... O-O {[%clk 0:02:56.6]} 8. h3 {[%clk
0:02:59.5]} 8... h6 {[%clk 0:02:51.2]} 9. Re1 {[%clk 0:02:59.1]} 9... Ba7 {[%clk
0:02:46.9]} 10. d4 {[%clk 0:02:50.3]} 10... exd4 {[%clk 0:02:43.4]} 11. cxd4
{[%clk 0:02:48.7]} 11... d5 {[%clk 0:02:43.5]} 12. exd5 {[%clk 0:02:48]} 12...
Nxd5 {[%clk 0:02:44.4]} 13. Nc3 {[%clk 0:02:45.3]} 13... Be6 {[%clk 0:02:38.2]}
14. Nb5 {[%clk 0:02:25.1]} 14... Bb6 {[%clk 0:02:31.6]} 15. b3 {[%clk
0:02:16.9]} 15... Ncb4 {[%clk 0:02:28.8]} 16. Bb2 {[%clk 0:02:14.1]} 16... c6
{[%clk 0:02:09]} 17. Nc3 {[%clk 0:02:14.2]} 17... Qf6 {[%clk 0:01:59.3]} 18. Ne4
{[%clk 0:02:09]} 18... Qe7 {[%clk 0:01:52.3]} 19. Ne5 {[%clk 0:02:04.7]} 19...
Rad8 {[%clk 0:01:50]} 20. Qh5 {[%clk 0:02:01.7]} 20... Nc2 {[%clk 0:01:36.8]}
21. Rec1 {[%clk 0:01:36.5]} 21... Nxa1 {[%clk 0:01:36.9]} 22. Rxa1 {[%clk
0:01:36.8]} 22... Nf6 {[%clk 0:01:35.2]} 23. Nxf6+ {[%clk 0:01:23.2]} 23... Qxf6
{[%clk 0:01:36.1]} 24. Nf3 {[%clk 0:01:17]} 24... Bd5 {[%clk 0:01:32.5]} 25. Ne5
{[%clk 0:01:03.5]} 25... Bxc4 {[%clk 0:01:24.4]} 26. Nxc4 {[%clk 0:00:52.1]}
26... Bxd4 {[%clk 0:01:24.4]} 27. Bxd4 {[%clk 0:00:50.9]} 27... Rxd4 {[%clk
0:01:21.6]} 28. Rf1 {[%clk 0:00:49]} 28... Rd5 {[%clk 0:01:17.8]} 29. Qe2 {[%clk
0:00:49.1]} 29... Rfd8 {[%clk 0:01:15.4]} 30. Qe1 {[%clk 0:00:43.8]} 30... Qf5
{[%clk 0:00:55.1]} 31. Ne3 {[%clk 0:00:43.6]} 31... Qd3 {[%clk 0:00:44.8]} 32.
Nxd5 {[%clk 0:00:42.9]} 32... Qxd5 {[%clk 0:00:39.6]} 33. Qc3 {[%clk 0:00:38.7]}
33... Qd2 {[%clk 0:00:33.9]} 34. Qc5 {[%clk 0:00:34.3]} 34... Rd5 {[%clk
0:00:33.1]} 35. Qb6 {[%clk 0:00:32.4]} 35... Qb4 {[%clk 0:00:33]} 36. Qc7 {[%clk
0:00:22.8]} 36... Qxb3 {[%clk 0:00:23.9]} 37. Re1 {[%clk 0:00:22.9]} 37... Rd1
{[%clk 0:00:21.6]} 38. Qc8+ {[%clk 0:00:23]} 38... Kh7 {[%clk 0:00:21.3]} 39.
Rxd1 {[%clk 0:00:16.9]} 39... Qxd1+ {[%clk 0:00:22.2]} 40. Kh2 {[%clk
0:00:17.5]} 40... Qd6+ {[%clk 0:00:21.9]} 41. g3 {[%clk 0:00:16.9]} 41... b5
{[%clk 0:00:17]} 42. axb5 {[%clk 0:00:16.8]} 42... cxb5 {[%clk 0:00:16.9]} 43.
Qf5+ {[%clk 0:00:17]} 43... Kg8 {[%clk 0:00:17.5]} 44. Qxb5 {[%clk 0:00:17.2]}
44... Qb4 {[%clk 0:00:16.6]} 45. Qe8+ {[%clk 0:00:16.5]} 45... Qf8 {[%clk
0:00:16.8]} 46. Qa4 {[%clk 0:00:14.1]} 46... Qa8 {[%clk 0:00:16.9]} 47. h4
{[%clk 0:00:13.5]} 47... g6 {[%clk 0:00:17.5]} 48. g4 {[%clk 0:00:12.4]} 48...
Kg7 {[%clk 0:00:15.9]} 49. h5 {[%clk 0:00:12.5]} 49... Kg8 {[%clk 0:00:14.9]}
50. hxg6 {[%clk 0:00:12.4]} 50... fxg6 {[%clk 0:00:15.8]} 51. Qc4+ {[%clk
0:00:12.5]} 51... Kg7 {[%clk 0:00:16.1]} 52. Qc7+ {[%clk 0:00:12.9]} 52... Kf6
{[%clk 0:00:16.4]} 53. f4 {[%clk 0:00:12.4]} 53... Qd5 {[%clk 0:00:15.2]} 54.
Qb6+ {[%clk 0:00:12.1]} 54... Qe6 {[%clk 0:00:13.8]} 55. g5+ {[%clk 0:00:08.8]}
55... hxg5 {[%clk 0:00:10.9]} 56. fxg5+ {[%clk 0:00:09.2]} 56... Kf5 {[%clk
0:00:10.9]} 57. Qxa5+ {[%clk 0:00:09.5]} 57... Qe5+ {[%clk 0:00:10.8]} 58. Qxe5+
{[%clk 0:00:08.9]} 58... Kxe5 {[%clk 0:00:11.7]} 59. Kg3 {[%clk 0:00:07]} 59...
Kf5 {[%clk 0:00:12]} 60. Kf3 {[%clk 0:00:07.9]} 60... Kxg5 {[%clk 0:00:12.4]}
61. Kg3 {[%clk 0:00:08.1]} 61... Kf5 {[%clk 0:00:12.9]} 62. Kf3 {[%clk
0:00:08.8]} 62... g5 {[%clk 0:00:12.8]} 63. Kg3 {[%clk 0:00:09.4]} 63... g4
{[%clk 0:00:12.2]} 64. Kf2 {[%clk 0:00:09.1]} 64... Kf4 {[%clk 0:00:12.9]} 65.
Kg2 {[%clk 0:00:09.8]} 65... g3 {[%clk 0:00:13.6]} 66. Kg1 {[%clk 0:00:08.8]}
66... Kg4 {[%clk 0:00:12.4]} 67. Kg2 {[%clk 0:00:09.1]} 67... Kh4 {[%clk
0:00:12.9]} 68. Kg1 {[%clk 0:00:09]} 68... Kh3 {[%clk 0:00:13.5]} 69. Kh1 {[%clk
0:00:09.3]} 69... Kg4 {[%clk 0:00:14.2]} 70. Kg2 {[%clk 0:00:09.4]} 70... Kf4
{[%clk 0:00:15]} 71. Kf1 {[%clk 0:00:07.9]} 71... Kf3 {[%clk 0:00:14.5]} 72. Kg1
{[%clk 0:00:08.5]} 72... g2 {[%clk 0:00:15.2]} 73. Kh2 {[%clk 0:00:08.8]} 73...
Kf2 {[%clk 0:00:15.8]} 74. Kh3 {[%clk 0:00:09.3]} 74... g1=Q {[%clk 0:00:16.5]}
75. Kh4 {[%clk 0:00:10.1]} 75... Qg3+ {[%clk 0:00:16.9]} 0-1

[Event "Late-Titled-Tuesday-Blitz-January-16-2024"]
[Site "Chess.com"]
[Date "2024.01.16"]
[Round "3"]
[White "Eloist"]
[Black "GulamaliRises"]
[Result "0-1"]
[WhiteElo "2438"]
[BlackElo "2616"]
[TimeControl "180+1"]
[EndTime "14:28:40 PST"]
[Termination "GulamaliRises won on time"]

1. e4 {[%clk 0:03:00.9]} 1... e5 {[%clk 0:02:55]} 2. Bc4 {[%clk 0:02:56.9]} 2...
Nc6 {[%clk 0:02:55.9]} 3. Nf3 {[%clk 0:02:55.6]} 3... Nf6 {[%clk 0:02:55.3]} 4.
d3 {[%clk 0:02:55.8]} 4... Be7 {[%clk 0:02:55.7]} 5. O-O {[%clk 0:02:55.8]} 5...
d6 {[%clk 0:02:56.2]} 6. a4 {[%clk 0:02:53.9]} 6... O-O {[%clk 0:02:49.6]} 7.
Re1 {[%clk 0:02:53.5]} 7... Bg4 {[%clk 0:02:26.6]} 8. h3 {[%clk 0:02:51.2]} 8...
Bxf3 {[%clk 0:02:23.8]} 9. Qxf3 {[%clk 0:02:50.5]} 9... Nd4 {[%clk 0:02:24.4]}
10. Qd1 {[%clk 0:02:50.3]} 10... c6 {[%clk 0:02:25.2]} 11. c3 {[%clk 0:02:50.1]}
11... Ne6 {[%clk 0:02:25.6]} 12. Bxe6 {[%clk 0:02:37.4]} 12... fxe6 {[%clk
0:02:25.4]} 13. Nd2 {[%clk 0:02:35.5]} 13... Kh8 {[%clk 0:02:02.9]} 14. Nf3
{[%clk 0:02:17.1]} 14... Nd7 {[%clk 0:02:03.1]} 15. d4 {[%clk 0:02:12.1]} 15...
Bf6 {[%clk 0:00:35.3]} 16. Be3 {[%clk 0:02:10.3]} 16... Qc7 {[%clk 0:00:34.8]}
17. c4 {[%clk 0:02:05.2]} 17... exd4 {[%clk 0:00:32.5]} 18. Bxd4 {[%clk
0:01:56.8]} 18... Bxd4 {[%clk 0:00:30.8]} 19. Nxd4 {[%clk 0:01:50]} 19... Rae8
{[%clk 0:00:30.9]} 20. Ra3 {[%clk 0:01:43.1]} 20... a5 {[%clk 0:00:30.9]} 21.
Rae3 {[%clk 0:01:27.4]} 21... g6 {[%clk 0:00:22.9]} 22. b3 {[%clk 0:01:22]}
22... e5 {[%clk 0:00:22.5]} 23. Ne2 {[%clk 0:01:14.8]} 23... Nc5 {[%clk
0:00:22.2]} 24. Nc3 {[%clk 0:01:09.1]} 24... Ne6 {[%clk 0:00:21]} 25. Rd3 {[%clk
0:01:02.3]} 25... Nd4 {[%clk 0:00:21.1]} 26. Ne2 {[%clk 0:01:01.4]} 26... c5
{[%clk 0:00:21.6]} 27. Nc3 {[%clk 0:00:53.8]} 27... Qf7 {[%clk 0:00:21.7]} 28.
Rf1 {[%clk 0:00:49.2]} 28... g5 {[%clk 0:00:21.2]} 29. Nd5 {[%clk 0:00:48.1]}
29... Qg6 {[%clk 0:00:21.5]} 30. Qd2 {[%clk 0:00:41.7]} 30... Rf7 {[%clk
0:00:18.5]} 31. Qxa5 {[%clk 0:00:39.6]} 31... g4 {[%clk 0:00:16.9]} 32. Qd2
{[%clk 0:00:33.7]} 32... gxh3 {[%clk 0:00:16]} 33. Rxh3 {[%clk 0:00:33.2]} 33...
Nf3+ {[%clk 0:00:16.5]} 34. Rxf3 {[%clk 0:00:32.2]} 34... Rxf3 {[%clk
0:00:17.4]} 35. Ne3 {[%clk 0:00:23.2]} 35... Rg8 {[%clk 0:00:13.6]} 36. Rd1
{[%clk 0:00:19.9]} 36... Qxe4 {[%clk 0:00:13.4]} 37. Qd5 {[%clk 0:00:13.7]}
37... Qxd5 {[%clk 0:00:04.8]} 38. Rxd5 {[%clk 0:00:11.7]} 38... Rf6 {[%clk
0:00:05.3]} 39. b4 {[%clk 0:00:11.3]} 39... cxb4 {[%clk 0:00:04.1]} 40. Rb5
{[%clk 0:00:11.5]} 40... Ra8 {[%clk 0:00:02.4]} 41. Rxb4 {[%clk 0:00:09.2]}
41... Rf7 {[%clk 0:00:03.1]} 42. Kf1 {[%clk 0:00:07.8]} 42... Rg7 {[%clk
0:00:04]} 43. Ke2 {[%clk 0:00:07.4]} 43... Rf8 {[%clk 0:00:04.9]} 44. f3 {[%clk
0:00:06.5]} 44... h5 {[%clk 0:00:05.8]} 45. Rb6 {[%clk 0:00:04.9]} 45... Rf6
{[%clk 0:00:06.4]} 46. Nd5 {[%clk 0:00:04.4]} 46... Rfg6 {[%clk 0:00:06.9]} 47.
Ne3 {[%clk 0:00:03.6]} 47... h4 {[%clk 0:00:07.5]} 48. a5 {[%clk 0:00:03.7]}
48... Kg8 {[%clk 0:00:08.3]} 49. a6 {[%clk 0:00:03.5]} 49... bxa6 {[%clk
0:00:09.2]} 50. Rxa6 {[%clk 0:00:04]} 50... Kh7 {[%clk 0:00:10.1]} 51. Rc6
{[%clk 0:00:03.6]} 51... Rf7 {[%clk 0:00:10.3]} 52. c5 {[%clk 0:00:03.6]} 52...
dxc5 {[%clk 0:00:10.3]} 53. Rxc5 {[%clk 0:00:04.5]} 53... Re7 {[%clk 0:00:10]}
54. Nf5 {[%clk 0:00:04.5]} 54... Ra7 {[%clk 0:00:03.8]} 55. Nxh4 {[%clk
0:00:04.3]} 55... Rb6 {[%clk 0:00:04.7]} 56. Rxe5 {[%clk 0:00:04]} 56... Rb2+
{[%clk 0:00:05.6]} 57. Kf1 {[%clk 0:00:03]} 57... Ra1+ {[%clk 0:00:05.7]} 58.
Re1 {[%clk 0:00:03.3]} 58... Raa2 {[%clk 0:00:06.6]} 59. Re7+ {[%clk 0:00:02]}
59... Kh6 {[%clk 0:00:07]} 60. Re4 {[%clk 0:00:01.6]} 60... Kg5 {[%clk
0:00:07.9]} 61. g3 {[%clk 0:00:01.2]} 61... Rb1+ {[%clk 0:00:07.7]} 62. Re1
{[%clk 0:00:01.1]} 62... Rbb2 {[%clk 0:00:08.6]} 0-1

[Event "Late-Titled-Tuesday-Blitz-January-16-2024"]
[Site "Chess.com"]
[Date "2024.01.16"]
[Round "3"]
[White "Alexei_Gubajdullin"]
[Black "AntonSmirnov"]
[Result "0-1"]
[WhiteElo "2646"]
[BlackElo "2925"]
[TimeControl "180+1"]
[EndTime "14:28:42 PST"]
[Termination "AntonSmirnov won by resignation"]

1. d4 {[%clk 0:03:00]} 1... d5 {[%clk 0:02:59.9]} 2. Nf3 {[%clk 0:02:59.9]} 2...
Nf6 {[%clk 0:03:00]} 3. Bf4 {[%clk 0:03:00]} 3... c5 {[%clk 0:02:59.3]} 4. e3
{[%clk 0:03:00.1]} 4... Qb6 {[%clk 0:02:57.7]} 5. Nbd2 {[%clk 0:02:59.4]} 5...
Nc6 {[%clk 0:02:57.5]} 6. dxc5 {[%clk 0:02:56.4]} 6... Qxc5 {[%clk 0:02:56.3]}
7. c4 {[%clk 0:02:53.7]} 7... e6 {[%clk 0:02:46.3]} 8. a3 {[%clk 0:02:49.3]}
8... a5 {[%clk 0:02:41.9]} 9. Rc1 {[%clk 0:02:37.6]} 9... Qb6 {[%clk 0:02:41.6]}
10. Qb3 {[%clk 0:02:37.5]} 10... Qxb3 {[%clk 0:02:36.2]} 11. Nxb3 {[%clk
0:02:37.2]} 11... Be7 {[%clk 0:02:34.5]} 12. Nbd4 {[%clk 0:02:34.7]} 12... O-O
{[%clk 0:02:27.8]} 13. Nb5 {[%clk 0:02:33.9]} 13... Bd7 {[%clk 0:02:18.8]} 14.
Nd6 {[%clk 0:01:55.3]} 14... Nh5 {[%clk 0:02:02.3]} 15. Nb5 {[%clk 0:01:43.6]}
15... Nxf4 {[%clk 0:01:59]} 16. exf4 {[%clk 0:01:43.4]} 16... Bf6 {[%clk
0:01:39.9]} 17. Rc2 {[%clk 0:01:43.1]} 17... Na7 {[%clk 0:01:36]} 18. Nxa7
{[%clk 0:01:36.1]} 18... Rxa7 {[%clk 0:01:35.5]} 19. Ne5 {[%clk 0:01:33.3]}
19... Ba4 {[%clk 0:01:34.9]} 20. Rc3 {[%clk 0:01:30.8]} 20... Rc8 {[%clk
0:01:19.5]} 21. cxd5 {[%clk 0:01:17.2]} 21... Rxc3 {[%clk 0:01:17.3]} 22. bxc3
{[%clk 0:01:16.8]} 22... exd5 {[%clk 0:01:17.7]} 23. Kd2 {[%clk 0:01:16.3]}
23... g5 {[%clk 0:01:07.1]} 24. Ng4 {[%clk 0:01:08.3]} 24... Be7 {[%clk
0:01:05.8]} 25. f5 {[%clk 0:01:07.8]} 25... Bxa3 {[%clk 0:00:56.5]} 26. Bd3
{[%clk 0:01:05]} 26... Bd6 {[%clk 0:00:43.6]} 27. f6 {[%clk 0:01:03]} 27... h5
{[%clk 0:00:35.1]} 28. Nh6+ {[%clk 0:01:00.4]} 28... Kf8 {[%clk 0:00:35.3]} 29.
Re1 {[%clk 0:00:58.8]} 29... Ra8 {[%clk 0:00:32.2]} 30. Nf5 {[%clk 0:00:51.3]}
30... Bf4+ {[%clk 0:00:32]} 31. Ne3 {[%clk 0:00:44]} 31... Bc6 {[%clk
0:00:26.5]} 32. g3 {[%clk 0:00:42.2]} 32... Bxe3+ {[%clk 0:00:24.2]} 33. Rxe3
{[%clk 0:00:34]} 33... Re8 {[%clk 0:00:23.7]} 34. Be2 {[%clk 0:00:27.4]} 34...
Rxe3 {[%clk 0:00:20.6]} 35. fxe3 {[%clk 0:00:23.9]} 35... h4 {[%clk 0:00:21]}
36. gxh4 {[%clk 0:00:21.8]} 36... gxh4 {[%clk 0:00:21.9]} 37. Bh5 {[%clk
0:00:19.5]} 37... Bb5 {[%clk 0:00:21.2]} 38. Kc2 {[%clk 0:00:19]} 38... Bc4
{[%clk 0:00:21.7]} 39. Kb2 {[%clk 0:00:19]} 39... b5 {[%clk 0:00:22.2]} 40. Ka3
{[%clk 0:00:19]} 40... Bd3 {[%clk 0:00:19.7]} 41. Bg4 {[%clk 0:00:17.6]} 41...
Ke8 {[%clk 0:00:19.1]} 42. Bh5 {[%clk 0:00:14.8]} 42... Bc4 {[%clk 0:00:19.4]}
43. Bg4 {[%clk 0:00:14.3]} 43... Kd8 {[%clk 0:00:17.8]} 44. Bh5 {[%clk
0:00:13.8]} 44... d4 {[%clk 0:00:18.1]} 45. exd4 {[%clk 0:00:12.7]} 45... Kc7
{[%clk 0:00:18.1]} 46. Bg4 {[%clk 0:00:12.7]} 46... Kd6 {[%clk 0:00:18.4]} 47.
Bf5 {[%clk 0:00:12.3]} 47... Kd5 {[%clk 0:00:18.6]} 48. Bh7 {[%clk 0:00:09.7]}
48... Ke6 {[%clk 0:00:18.5]} 49. Be4 {[%clk 0:00:06]} 49... Kxf6 {[%clk
0:00:18.7]} 50. Kb2 {[%clk 0:00:05.6]} 50... Ke6 {[%clk 0:00:19]} 51. Ka3 {[%clk
0:00:05.4]} 51... f5 {[%clk 0:00:19.2]} 52. Bf3 {[%clk 0:00:05.5]} 52... f4
{[%clk 0:00:19.4]} 53. Kb2 {[%clk 0:00:05.3]} 53... b4 {[%clk 0:00:19.7]} 54.
cxb4 {[%clk 0:00:04.9]} 54... axb4 {[%clk 0:00:20.6]} 55. Kc2 {[%clk 0:00:05.5]}
55... Bd5 {[%clk 0:00:20.8]} 56. Bg4+ {[%clk 0:00:05.3]} 56... Kd6 {[%clk
0:00:20.9]} 57. Kb2 {[%clk 0:00:05.3]} 57... f3 {[%clk 0:00:19.8]} 58. Bh3
{[%clk 0:00:05.4]} 58... f2 {[%clk 0:00:20.1]} 59. Bf1 {[%clk 0:00:05.5]} 59...
Ke6 {[%clk 0:00:18.9]} 60. Kc2 {[%clk 0:00:05.6]} 60... b3+ {[%clk 0:00:18.7]}
61. Kd2 {[%clk 0:00:05.2]} 61... Kf6 {[%clk 0:00:17.1]} 62. Bd3 {[%clk
0:00:04.1]} 62... Be4 {[%clk 0:00:16.3]} 63. Bf1 {[%clk 0:00:01.7]} 63... b2
{[%clk 0:00:16.6]} 64. Ke3 {[%clk 0:00:02]} 64... b1=Q {[%clk 0:00:17.1]} 65.
Kxf2 {[%clk 0:00:02.9]} 65... Qc1 {[%clk 0:00:17]} 66. Be2 {[%clk 0:00:03.8]}
66... Qd2 {[%clk 0:00:17.4]} 0-1

[Event "Late-Titled-Tuesday-Blitz-January-16-2024"]
[Site "Chess.com"]
[Date "2024.01.16"]
[Round "3"]
[White "imdarealist"]
[Black "Rdeux42"]
[Result "0-1"]
[WhiteElo "2254"]
[BlackElo "2492"]
[TimeControl "180+1"]
[EndTime "14:28:45 PST"]
[Termination "Rdeux42 won on time"]

1. e4 {[%clk 0:02:50.6]} 1... c6 {[%clk 0:02:53.3]} 2. d4 {[%clk 0:02:44.5]}
2... d5 {[%clk 0:02:52.8]} 3. Nc3 {[%clk 0:02:44.6]} 3... dxe4 {[%clk
0:02:52.3]} 4. Nxe4 {[%clk 0:02:40.4]} 4... Bf5 {[%clk 0:02:52.5]} 5. Ng3 {[%clk
0:02:39]} 5... Bg6 {[%clk 0:02:52.4]} 6. h4 {[%clk 0:02:32.8]} 6... h6 {[%clk
0:02:52]} 7. Nf3 {[%clk 0:02:29.2]} 7... Nd7 {[%clk 0:02:49.5]} 8. h5 {[%clk
0:02:26.1]} 8... Bh7 {[%clk 0:02:49.2]} 9. Bd3 {[%clk 0:02:27]} 9... Bxd3 {[%clk
0:02:49.1]} 10. Qxd3 {[%clk 0:02:27.8]} 10... Ngf6 {[%clk 0:02:49.8]} 11. Bf4
{[%clk 0:02:27.7]} 11... e6 {[%clk 0:02:50]} 12. O-O-O {[%clk 0:02:26.1]} 12...
Be7 {[%clk 0:02:50]} 13. Kb1 {[%clk 0:02:24.8]} 13... O-O {[%clk 0:02:48.8]} 14.
Qe2 {[%clk 0:02:23]} 14... Qa5 {[%clk 0:02:33.7]} 15. Ne5 {[%clk 0:02:16.4]}
15... Nxe5 {[%clk 0:02:26.8]} 16. dxe5 {[%clk 0:02:12.4]} 16... Nd5 {[%clk
0:02:26.9]} 17. Bd2 {[%clk 0:02:10.9]} 17... Qb6 {[%clk 0:02:09.9]} 18. Ka1
{[%clk 0:01:55]} 18... Bc5 {[%clk 0:01:50.4]} 19. Ne4 {[%clk 0:01:49.1]} 19...
Bd4 {[%clk 0:01:41]} 20. c3 {[%clk 0:01:29.2]} 20... Bxe5 {[%clk 0:01:41.2]} 21.
Qg4 {[%clk 0:01:21.9]} 21... Kh7 {[%clk 0:00:46.7]} 22. f4 {[%clk 0:01:12.4]}
22... Nf6 {[%clk 0:00:44.1]} 23. Nxf6+ {[%clk 0:01:04.3]} 23... Bxf6 {[%clk
0:00:45]} 24. f5 {[%clk 0:01:00.7]} 24... e5 {[%clk 0:00:36.1]} 25. Rh3 {[%clk
0:00:52.7]} 25... Rad8 {[%clk 0:00:30.4]} 26. Qe2 {[%clk 0:00:45]} 26... Rd6
{[%clk 0:00:22]} 27. Rf1 {[%clk 0:00:41.8]} 27... Rfd8 {[%clk 0:00:21.5]} 28.
Be3 {[%clk 0:00:41]} 28... Qb5 {[%clk 0:00:16.4]} 29. Qxb5 {[%clk 0:00:38.4]}
29... cxb5 {[%clk 0:00:17.3]} 30. a3 {[%clk 0:00:38.6]} 30... Rd1+ {[%clk
0:00:15.9]} 31. Rxd1 {[%clk 0:00:37]} 31... Rxd1+ {[%clk 0:00:16.8]} 32. Ka2
{[%clk 0:00:37]} 32... a6 {[%clk 0:00:15.8]} 33. g4 {[%clk 0:00:30.6]} 33... Kg8
{[%clk 0:00:14.9]} 34. Rg3 {[%clk 0:00:29.2]} 34... Kf8 {[%clk 0:00:14.7]} 35.
g5 {[%clk 0:00:28.8]} 35... hxg5 {[%clk 0:00:15.2]} 36. Bxg5 {[%clk 0:00:29.7]}
36... Bxg5 {[%clk 0:00:16.1]} 37. Rxg5 {[%clk 0:00:29.9]} 37... f6 {[%clk
0:00:16.7]} 38. Rg6 {[%clk 0:00:29.6]} 38... Rf1 {[%clk 0:00:15.4]} 39. h6
{[%clk 0:00:28.4]} 39... gxh6 {[%clk 0:00:12.1]} 40. Rxf6+ {[%clk 0:00:28.5]}
40... Ke7 {[%clk 0:00:12.6]} 41. Re6+ {[%clk 0:00:19.7]} 41... Kf7 {[%clk
0:00:13]} 42. Rxe5 {[%clk 0:00:20.6]} 42... h5 {[%clk 0:00:11.1]} 43. f6 {[%clk
0:00:18.2]} 43... h4 {[%clk 0:00:09.3]} 44. Rh5 {[%clk 0:00:15.8]} 44... Rf4
{[%clk 0:00:09.3]} 45. Rh7+ {[%clk 0:00:14.8]} 45... Kxf6 {[%clk 0:00:09.9]} 46.
Rxb7 {[%clk 0:00:14.7]} 46... Kg5 {[%clk 0:00:10.5]} 47. Rg7+ {[%clk 0:00:13.1]}
47... Kh6 {[%clk 0:00:09.4]} 48. Rg8 {[%clk 0:00:11.5]} 48... Rf7 {[%clk
0:00:09.8]} 49. Rg4 {[%clk 0:00:08.2]} 49... Kh5 {[%clk 0:00:09.4]} 50. Rg1
{[%clk 0:00:07.7]} 50... h3 {[%clk 0:00:08.7]} 51. Kb3 {[%clk 0:00:06]} 51...
Rh7 {[%clk 0:00:07]} 52. Kb4 {[%clk 0:00:04.2]} 52... Kh4 {[%clk 0:00:06.5]} 53.
b3 {[%clk 0:00:03.3]} 53... h2 {[%clk 0:00:06.1]} 54. Rh1 {[%clk 0:00:03.5]}
54... Kg3 {[%clk 0:00:06.6]} 55. c4 {[%clk 0:00:03.8]} 55... bxc4 {[%clk
0:00:07.2]} 56. bxc4 {[%clk 0:00:04.3]} 56... Kg2 {[%clk 0:00:07.9]} 57. Rxh2+
{[%clk 0:00:04.7]} 57... Kxh2 {[%clk 0:00:08.8]} 58. c5 {[%clk 0:00:04.7]} 58...
Rh6 {[%clk 0:00:09.3]} 59. Kc4 {[%clk 0:00:02.8]} 59... Rh4+ {[%clk 0:00:09.2]}
60. Kd5 {[%clk 0:00:03.7]} 60... Ra4 {[%clk 0:00:09.4]} 61. c6 {[%clk 0:00:04]}
61... Rxa3 {[%clk 0:00:09.9]} 62. c7 {[%clk 0:00:04.7]} 62... Rc3 {[%clk
0:00:10]} 63. Kd6 {[%clk 0:00:05.6]} 63... a5 {[%clk 0:00:09.9]} 64. Kd7 {[%clk
0:00:06.5]} 64... a4 {[%clk 0:00:10.2]} 65. c8=Q {[%clk 0:00:05.3]} 65... Rxc8
{[%clk 0:00:11.1]} 66. Ke7 {[%clk 0:00:05.5]} 66... a3 {[%clk 0:00:12]} 0-1